lending/lending_fUSD_20250808
["ID","MTS","AMOUNT","RATE_DAILY","PERIOD"]
[377974341,1754640645647,-1118.9,0.00018775,2]
[377974342,1754640645656,-2182.68,0.00018775,2]
[377974343,1754640645665,-1408.96,0.00018775,2]
[377974344,1754640645674,-250.71497352,0.00018775,2]
[377974345,1754640645684,-400.0,0.00018775,2]
[377974346,1754640645693,-400.0,0.00018775,2]
[377974347,1754640645703,-1548.2,0.00018775,2]
[377974348,1754640645712,-1548.2,0.00018775,2]
[377974349,1754640645721,-1006.17,0.00018775,2]
[377974350,1754640645731,-400.0,0.00018775,2]
[377974351,1754640645740,-400.0,0.00018775,2]
[377974352,1754640645749,-400.0,0.00018775,2]
[377974353,1754640645758,-954.7,0.00018775,2]
[377974354,1754640645767,-400.0,0.00018775,2]
[377974355,1754640645777,-791.03,0.00018775,2]
[377974356,1754640645786,-664.91,0.00018775,2]
[377974357,1754640645795,-400.0,0.00018775,2]
[377974358,1754640645804,-504.52,0.00018775,2]
[377974359,1754640645814,-400.0,0.00018775,2]
[377974360,1754640645823,-400.0,0.00018775,2]
[377974361,1754640645834,-1116.88,0.00018775,2]
[377974362,1754640645845,-828.77,0.00018775,2]
[377974363,1754640645856,-400.0,0.00018775,2]
[377974364,1754640645867,-400.0,0.00018775,2]
[377974365,1754640645878,-400.0,0.00018775,2]
[377974366,1754640645888,-1146.22,0.00018775,2]
[377974367,1754640645897,-477.33,0.00018775,2]
[377974368,1754640645906,-400.0,0.00018775,2]
[377974369,1754640645917,-1310.3,0.00018775,2]
[377974370,1754640645926,-400.0,0.00018775,2]
[377974371,1754640645936,-400.0,0.00018775,2]
[377974372,1754640645945,-728.86,0.00018775,2]
[377974373,1754640645955,-1042.7,0.00018775,2]
[377974374,1754640645966,-796.15,0.00018775,2]
[377974375,1754640645982,-401.66231417,0.00018775,2]
[377974376,1754640645991,-537.73,0.00018775,2]
[377974377,1754640646000,-400.0,0.00018775,2]
[377974378,1754640646010,-400.0,0.00018775,2]
[377974379,1754640646019,-491.59,0.00018775,2]
[377974380,1754640646028,-400.0,0.00018775,2]
[377974381,1754640646038,-697.61,0.00018775,2]
[377974382,1754640646047,-400.0,0.00018775,2]
[377974383,1754640646058,-638.73,0.00018775,2]
[377974384,1754640646068,-400.0,0.00018775,2]
[377974385,1754640646077,-643.0,0.00018775,2]
[377974386,1754640646087,-400.0,0.00018775,2]
[377974387,1754640646096,-456.92101184,0.00018775,2]
[377974388,1754640646106,-1359.02,0.00018775,2]
[377974389,1754640646115,-434.46,0.00018775,2]
[377974390,1754640646124,-400.0,0.00018775,2]
[377974391,1754640646133,-400.0,0.00018775,2]
[377974392,1754640646143,-400.0,0.00018775,2]
[377974393,1754640646152,-470.35,0.00018775,2]
[377974394,1754640646162,-751.21,0.00018775,2]
[377974395,1754640646171,-400.0,0.00018775,2]
[377974396,1754640646180,-400.0,0.00018775,2]
[377974397,1754640646190,-400.0,0.00018775,2]
[377974399,1754640646199,-801.91,0.00018775,2]
[377974401,1754640646208,-438.65,0.00018775,2]
[377974402,1754640646217,-772.75,0.00018775,2]
[377974403,1754640646227,-1441.85,0.00018775,2]
[377974404,1754640646236,-6054.18,0.00018775,2]
[377974405,1754640646246,-533.66,0.00018775,2]
[377974406,1754640646255,-1160.88,0.00018775,2]
[377974407,1754640646264,-400.0,0.00018775,2]
[377974408,1754640646273,-151.0,0.00018775,2]
[377974409,1754640646283,-400.0,0.00018775,2]
[377974410,1754640646293,-400.0,0.00018775,2]
[377974411,1754640646303,-151.0,0.00018775,2]
[377974412,1754640646312,-592.19,0.00018775,2]
[377974413,1754640646322,-1552.55,0.00018775,2]
[377974415,1754640646331,-400.0,0.00018775,2]
[377974416,1754640646341,-614.01,0.00018775,2]
[377974417,1754640646350,-1043.77,0.00018775,2]
[377974418,1754640646360,-285.96184503,0.00018775,2]
[377974419,1754640646369,-400.0,0.00018775,2]
[377974420,1754640646379,-1494.71,0.00018775,2]
[377974421,1754640646388,-400.0,0.00018775,2]
[377974422,1754640646397,-1417.74,0.00018775,2]
[377974423,1754640646407,-151.0,0.00018775,2]
[377974424,1754640646416,-400.0,0.00018775,2]
[377974425,1754640646426,-400.0,0.00018775,2]
[377974426,1754640646436,-743.98,0.00018775,2]
[377974427,1754640646445,-152.896394,0.00018775,2]
[377974428,1754640646454,-400.0,0.00018775,2]
[377974429,1754640646463,-400.0,0.00018775,2]
[377974430,1754640646473,-400.0,0.00018775,2]
[377974431,1754640646482,-400.0,0.00018775,2]
[377974432,1754640646491,-400.0,0.00018775,2]
[377974433,1754640646500,-1936.7,0.00018775,2]
[377974434,1754640646509,-400.0,0.00018775,2]
[377974435,1754640646519,-400.0,0.00018775,2]
[377974436,1754640646528,-400.0,0.00018775,2]
[377974437,1754640646537,-400.0,0.00018775,2]
[377974438,1754640646547,-400.0,0.00018775,2]
[377974439,1754640646556,-400.0,0.00018775,2]
[377974440,1754640646566,-763.32,0.00018775,2]
[377974441,1754640646575,-712.11,0.00018775,2]
[377974442,1754640646584,-400.0,0.00018775,2]
[377974443,1754640646594,-475.34,0.00018775,2]
[377974444,1754640646603,-656.39,0.00018775,2]
[377974445,1754640646612,-400.0,0.00018775,2]
[377974446,1754640646622,-2711.94,0.00018775,2]
[377974447,1754640646631,-1210.97,0.00018775,2]
[377974448,1754640646642,-400.0,0.00018775,2]
[377974449,1754640646651,-933.37,0.00018775,2]
[377974450,1754640646660,-421.22,0.00018775,2]
[377974451,1754640646670,-1654.67,0.00018775,2]
[377974452,1754640646679,-826.07,0.00018775,2]
[377974453,1754640646687,-400.0,0.00018775,2]
[377974454,1754640646696,-166.757556,0.00018775,2]
[377974455,1754640646706,-400.0,0.00018775,2]
[377974456,1754640646716,-400.0,0.00018775,2]
[377974457,1754640646725,-166.757556,0.00018775,2]
[377974458,1754640646734,-412.74,0.00018775,2]
[377974459,1754640646743,-400.0,0.00018775,2]
[377974460,1754640646752,-529.74,0.00018775,2]
[377974461,1754640646761,-400.0,0.00018775,2]
[377974462,1754640646771,-742.92,0.00018775,2]
[377974463,1754640646780,-400.0,0.00018775,2]
[377974464,1754640646789,-400.0,0.00018775,2]
[377974465,1754640646798,-386.507642,0.00018775,2]
[377974466,1754640646807,-894.93,0.00018775,2]
[377974467,1754640646816,-1391.12,0.00018775,2]
[377974468,1754640646825,-733.38,0.00018775,2]
[377974469,1754640646835,-400.0,0.00018775,2]
[377974470,1754640646844,-400.0,0.00018775,2]
[377974471,1754640646853,-400.0,0.00018775,2]
[377974472,1754640646863,-963.62,0.00018775,2]
[377974473,1754640646872,-811.49,0.00018775,2]
[377974474,1754640646881,-400.0,0.00018775,2]
[377974475,1754640646891,-400.0,0.00018775,2]
[377974476,1754640646901,-458.627744,0.00018775,2]
[377974477,1754640646912,-400.0,0.00018775,2]
[377974478,1754640646922,-434.13,0.00018775,2]
[377974479,1754640646931,-400.0,0.00018775,2]
[377974480,1754640646941,-151.0,0.00018775,2]
[377974481,1754640646950,-831.41,0.00018775,2]
[377974482,1754640646960,-2508.58,0.00018775,2]
[377974483,1754640646974,-400.0,0.00018775,2]
[377974484,1754640646983,-1043.21,0.00018775,2]
[377974485,1754640646993,-1928.41,0.00018775,2]
[377974486,1754640647002,-151.0,0.00018775,2]
[377974487,1754640647013,-734.27,0.00018775,2]
[377974488,1754640647023,-905.16,0.00018775,2]
[377974489,1754640647032,-400.0,0.00018775,2]
[377974490,1754640647042,-920.65,0.00018775,2]
[377974491,1754640647054,-400.0,0.00018775,2]
[377974492,1754640647065,-400.0,0.00018775,2]
[377974493,1754640647076,-400.0,0.00018775,2]
[377974494,1754640647086,-1417.47,0.00018775,2]
[377974495,1754640647095,-535.95,0.00018775,2]
[377974496,1754640647105,-970.07,0.00018775,2]
[377974497,1754640647114,-400.0,0.00018775,2]
[377974498,1754640647124,-151.0,0.00018775,2]
[377974499,1754640647133,-400.0,0.00018775,2]
[377974500,1754640647144,-400.0,0.00018775,2]
[377974501,1754640647153,-400.0,0.00018775,2]
[377974502,1754640647163,-400.0,0.00018775,2]
[377974503,1754640647173,-400.0,0.00018776,2]
[377974504,1754640647182,-487.15,0.00018776,2]
[377974505,1754640647192,-517.86,0.00018776,2]
[377974506,1754640647202,-400.0,0.00018776,2]
[377974507,1754640647212,-703.13,0.00018776,2]
[377974508,1754640647222,-400.0,0.00018776,2]
[377974509,1754640647234,-400.0,0.00018776,2]
[377974510,1754640647244,-400.0,0.00018776,2]
[377974511,1754640647254,-400.0,0.00018776,2]
[377974512,1754640647263,-400.0,0.00018776,2]
[377974513,1754640647272,-563.62,0.00018776,2]
[377974514,1754640647282,-400.0,0.00018776,2]
[377974515,1754640647291,-400.0,0.00018776,2]
[377974516,1754640647301,-400.0,0.00018776,2]
[377974517,1754640647315,-671.72,0.00018776,2]
[377974518,1754640647331,-400.0,0.00018776,2]
[377974519,1754640647341,-400.0,0.00018776,2]
[377974520,1754640647351,-400.0,0.00018776,2]
[377974521,1754640647361,-400.0,0.00018776,2]
[377974522,1754640647371,-400.0,0.00018776,2]
[377974523,1754640647381,-400.0,0.00018776,2]
[377974524,1754640647391,-400.0,0.00018776,2]
[377974525,1754640647401,-400.0,0.00018776,2]
[377974526,1754640647410,-492.88,0.00018776,2]
[377974527,1754640647420,-466.76483613,0.00018776,2]
[377974528,1754640647429,-484.33,0.00018776,2]
[377974529,1754640647439,-813.34,0.00018776,2]
[377974530,1754640647448,-400.0,0.00018776,2]
[377974531,1754640647458,-400.0,0.00018776,2]
[377974532,1754640647467,-151.0,0.00018776,2]
[377974533,1754640647477,-616.43,0.00018776,2]
[377974534,1754640647486,-607.98,0.00018776,2]
[377974535,1754640647495,-151.0,0.00018776,2]
[377974536,1754640647505,-400.0,0.00018776,2]
[377974537,1754640647515,-400.0,0.00018776,2]
[377974538,1754640647524,-400.0,0.00018776,2]
[377974539,1754640647534,-151.0,0.00018776,2]
[377974540,1754640647543,-728.35,0.00018776,2]
[377974541,1754640647553,-153.374748,0.00018776,2]
[377974542,1754640647562,-188.4465189,0.00018776,2]
[377974543,1754640647572,-151.742927,0.00018776,2]
[377974544,1754640647582,-400.0,0.00018776,2]
[377974545,1754640647592,-501.32,0.00018776,2]
[377974546,1754640647602,-400.0,0.00018776,2]
[377974547,1754640647611,-400.0,0.00018776,2]
[377974548,1754640647621,-151.0,0.00018776,2]
[377974549,1754640647630,-151.0,0.00018776,2]
[377974550,1754640647641,-474.39,0.00018776,2]
[377974551,1754640647650,-400.0,0.00018776,2]
[377974552,1754640647660,-770.91,0.00018776,2]
[377974553,1754640647669,-834.31,0.00018776,2]
[377974554,1754640647679,-400.0,0.00018776,2]
[377974555,1754640647688,-400.0,0.00018776,2]
[377974556,1754640647698,-400.0,0.00018776,2]
[377974557,1754640647707,-400.0,0.00018776,2]
[377974558,1754640647717,-400.0,0.00018776,2]
[377974559,1754640647727,-400.0,0.00018776,2]
[377974560,1754640647737,-677.67,0.00018776,2]
[377974561,1754640647747,-153.495856,0.00018776,2]
[377974562,1754640647756,-151.0,0.00018776,2]
[377974563,1754640647766,-400.0,0.00018776,2]
[377974564,1754640647775,-400.0,0.00018776,2]
[377974565,1754640647785,-400.0,0.00018776,2]
[377974566,1754640647795,-400.0,0.00018776,2]
[377974567,1754640647804,-400.0,0.00018776,2]
[377974568,1754640647813,-400.0,0.00018776,2]
[377974569,1754640647823,-400.0,0.00018776,2]
[377974570,1754640647832,-760.9,0.00018776,2]
[377974571,1754640647842,-151.0,0.00018776,2]
[377974572,1754640647852,-509.46,0.00018776,2]
[377974573,1754640647862,-400.0,0.00018776,2]
[377974574,1754640647872,-400.0,0.00018776,2]
[377974575,1754640647881,-400.0,0.00018776,2]
[377974576,1754640647891,-400.0,0.00018776,2]
[377974577,1754640647901,-400.0,0.00018776,2]
[377974578,1754640647911,-400.0,0.00018776,2]
[377974579,1754640647920,-409.52,0.00018776,2]
[377974580,1754640647930,-643.24,0.00018776,2]
[377974581,1754640647940,-400.0,0.00018776,2]
[377974582,1754640647950,-472.46,0.00018776,2]
[377974583,1754640647959,-157.040883,0.00018776,2]
[377974584,1754640647970,-518.5,0.00018776,2]
[377974585,1754640647982,-400.0,0.00018776,2]
[377974586,1754640647992,-400.0,0.00018776,2]
[377974587,1754640648001,-400.0,0.00018776,2]
[377974588,1754640648011,-400.0,0.00018776,2]
[377974589,1754640648220,-400.0,0.00018776,2]
[377974590,1754640648239,-151.0,0.00018776,2]
[377974591,1754640648249,-400.0,0.00018776,2]
[377974592,1754640648259,-400.0,0.00018776,2]
[377974593,1754640648270,-490.46,0.00018776,2]
[377974594,1754640648279,-400.0,0.00018776,2]
[377974595,1754640648290,-151.0,0.00018776,2]
[377974596,1754640648301,-430.7,0.00018776,2]
[377974597,1754640648311,-742.04,0.00018776,2]
[377974598,1754640648322,-400.0,0.00018776,2]
[377974599,1754640648332,-400.0,0.00018776,2]
[377974600,1754640648342,-626.39,0.00018776,2]
[377974601,1754640648351,-634.26,0.00018776,2]
[377974602,1754640648361,-151.0,0.00018776,2]
[377974603,1754640648371,-153.372118,0.00018776,2]
[377974604,1754640648381,-400.0,0.00018776,2]
[377974605,1754640648392,-400.0,0.00018776,2]
[377974606,1754640648401,-400.0,0.00018776,2]
[377974607,1754640648411,-404.35,0.00018776,2]
[377974608,1754640648420,-400.0,0.00018776,2]
[377974609,1754640648431,-151.0,0.00018776,2]
[377974610,1754640648441,-400.0,0.00018776,2]
[377974611,1754640648451,-400.0,0.00018776,2]
[377974612,1754640648461,-400.0,0.00018776,2]
[377974613,1754640648471,-424.75,0.00018776,2]
[377974614,1754640648481,-400.0,0.00018776,2]
[377974615,1754640648490,-751.46,0.00018776,2]
[377974616,1754640648500,-153.56123,0.00018776,2]
[377974617,1754640648509,-340.83136511,0.00018776,2]
[377974618,1754640648519,-151.0,0.00018776,2]
[377974619,1754640648529,-898.71,0.00018776,2]
[377974620,1754640648540,-151.0,0.00018776,2]
[377974621,1754640648550,-400.0,0.00018776,2]
[377974622,1754640648561,-486.39,0.00018776,2]
[377974623,1754640648571,-400.0,0.00018776,2]
[377974624,1754640648581,-400.0,0.00018776,2]
[377974625,1754640648590,-654.86,0.00018776,2]
[377974626,1754640648600,-151.641023,0.00018776,2]
[377974627,1754640648609,-400.0,0.00018776,2]
[377974628,1754640648619,-668.87,0.00018776,2]
[377974629,1754640648628,-400.0,0.00018776,2]
[377974630,1754640648639,-400.0,0.00018776,2]
[377974631,1754640648648,-463.18,0.00018776,2]
[377974632,1754640648657,-500.11271037,0.00018776,2]
[377974633,1754640648667,-400.0,0.00018776,2]
[377974634,1754640648677,-354.354859,0.00018776,2]
[377974635,1754640648687,-400.0,0.00018776,2]
[377974636,1754640648696,-400.0,0.00018776,2]
[377974637,1754640648706,-400.0,0.00018776,2]
[377974638,1754640648715,-400.0,0.00018776,2]
[377974639,1754640648724,-354.354859,0.00018776,2]
[377974640,1754640648734,-400.0,0.00018776,2]
[377974641,1754640648744,-151.0,0.00018776,2]
[377974642,1754640648753,-155.65444,0.00018776,2]
[377974643,1754640648763,-727.23,0.00018776,2]
[377974644,1754640648773,-400.0,0.00018776,2]
[377974645,1754640648782,-155.441264,0.00018776,2]
[377974646,1754640648793,-476.4,0.00018776,2]
[377974647,1754640648803,-400.0,0.00018776,2]
[377974648,1754640648812,-402.59,0.00018776,2]
[377974649,1754640648822,-400.0,0.00018776,2]
[377974650,1754640648832,-748.11,0.00018776,2]
[377974651,1754640648841,-400.0,0.00018776,2]
[377974652,1754640648851,-400.0,0.00018776,2]
[377974653,1754640648860,-400.0,0.00018776,2]
[377974654,1754640648870,-1090.64,0.00018776,2]
[377974655,1754640648879,-400.0,0.00018776,2]
[377974656,1754640648889,-400.0,0.00018776,2]
[377974657,1754640648899,-1023.19,0.00018776,2]
[377974658,1754640648910,-400.0,0.00018776,2]
[377974659,1754640648920,-413.58,0.00018776,2]
[377974660,1754640648930,-995.3,0.00018776,2]
[377974661,1754640648939,-400.0,0.00018776,2]
[377974662,1754640648949,-1008.3,0.00018776,2]
[377974663,1754640648959,-151.0,0.00018776,2]
[377974664,1754640648971,-151.0,0.00018776,2]
[377974665,1754640648985,-400.0,0.00018776,2]
[377974666,1754640648995,-726.39,0.00018776,2]
[377974667,1754640649005,-400.0,0.00018776,2]
[377974668,1754640649015,-956.83,0.00018776,2]
[377974669,1754640649024,-400.0,0.00018776,2]
[377974670,1754640649034,-902.25,0.00018776,2]
[377974671,1754640649044,-151.0,0.00018776,2]
[377974672,1754640649054,-400.0,0.00018776,2]
[377974673,1754640649064,-151.0,0.00018776,2]
[377974674,1754640649074,-400.0,0.00018776,2]
[377974675,1754640649083,-151.0,0.00018776,2]
[377974676,1754640649093,-151.0,0.00018776,2]
[377974677,1754640649103,-475.58,0.00018776,2]
[377974678,1754640649113,-400.0,0.00018776,2]
[377974679,1754640649122,-400.0,0.00018776,2]
[377974680,1754640649132,-984.31,0.00018776,2]
[377974681,1754640649143,-805.61,0.00018776,2]
[377974682,1754640649152,-445.2,0.00018776,2]
[377974683,1754640649163,-277.220223,0.00018776,2]
[377974684,1754640649173,-400.0,0.00018776,2]
[377974685,1754640649182,-400.0,0.00018776,2]
[377974686,1754640649192,-1464.11,0.00018776,2]
[377974687,1754640649202,-400.0,0.00018776,2]
[377974688,1754640649212,-784.74,0.00018776,2]
[377974689,1754640649222,-500.0,0.00018776,2]
[377974690,1754640649232,-400.0,0.00018776,2]
[377974691,1754640649241,-400.0,0.00018776,2]
[377974692,1754640649251,-274.86683089,0.00018776,2]
[377974693,1754640649261,-688.3,0.00018776,2]
[377974694,1754640649270,-412.29,0.00018776,2]
[377974696,1754640649280,-400.0,0.00018776,2]
[377974697,1754640649294,-400.0,0.00018776,2]
[377974698,1754640649303,-400.0,0.00018776,2]
[377974699,1754640649314,-1444.3,0.00018776,2]
[377974700,1754640649324,-606.55,0.00018776,2]
[377974701,1754640649334,-400.0,0.00018776,2]
[377974702,1754640649344,-400.0,0.00018776,2]
[377974703,1754640649354,-1085.11,0.00018776,2]
[377974704,1754640649366,-400.0,0.00018776,2]
[377974705,1754640649376,-400.0,0.00018776,2]
[377974706,1754640649386,-400.0,0.00018776,2]
[377974707,1754640649397,-151.774708,0.00018776,2]
[377974708,1754640649406,-713.05,0.00018776,2]
[377974709,1754640649417,-151.0,0.00018776,2]
[377974710,1754640649427,-400.0,0.00018776,2]
[377974711,1754640649437,-516.43,0.00018776,2]
[377974712,1754640649447,-400.0,0.00018776,2]
[377974713,1754640649456,-400.0,0.00018776,2]
[377974714,1754640649467,-311.75446871,0.00018776,2]
[377974715,1754640649477,-511.23,0.00018776,2]
[377974716,1754640649488,-400.0,0.00018776,2]
[377974717,1754640649498,-506.82,0.00018776,2]
[377974718,1754640649508,-400.0,0.00018776,2]
[377974719,1754640649518,-1210.99,0.00018776,2]
[377974720,1754640649528,-569.96,0.00018776,2]
[377974721,1754640649538,-1013.85,0.00018776,2]
[377974722,1754640649548,-400.0,0.00018776,2]
[377974723,1754640649558,-400.0,0.00018776,2]
[377974724,1754640649568,-855.29,0.00018776,2]
[377974725,1754640649577,-1859.74,0.00018776,2]
[377974726,1754640649588,-400.0,0.00018776,2]
[377974727,1754640649598,-525.02,0.00018776,2]
[377974728,1754640649608,-400.0,0.00018776,2]
[377974729,1754640649618,-1173.06,0.00018776,2]
[377974730,1754640649628,-400.0,0.00018776,2]
[377974731,1754640649639,-400.0,0.00018776,2]
[377974732,1754640649648,-842.03,0.00018776,2]
[377974733,1754640649658,-783.92,0.00018776,2]
[377974734,1754640649668,-400.0,0.00018776,2]
[377974735,1754640649678,-400.0,0.00018776,2]
[377974736,1754640649690,-400.0,0.00018776,2]
[377974737,1754640649700,-1305.55,0.00018776,2]
[377974738,1754640649709,-601.04,0.00018776,2]
[377974739,1754640649720,-151.0,0.00018776,2]
[377974740,1754640649730,-604.54,0.00018776,2]
[377974741,1754640649740,-400.0,0.00018776,2]
[377974742,1754640649749,-400.0,0.00018776,2]
[377974743,1754640649760,-1007.74,0.00018776,2]
[377974744,1754640649770,-151.0,0.00018776,2]
[377974745,1754640649779,-739.28,0.00018776,2]
[377974746,1754640649789,-400.0,0.00018776,2]
[377974747,1754640649799,-605.03,0.00018776,2]
[377974748,1754640649808,-577.08,0.00018776,2]
[377974749,1754640649818,-400.0,0.00018776,2]
[377974750,1754640649828,-400.0,0.00018776,2]
[377974751,1754640649838,-400.0,0.00018776,2]
[377974752,1754640649847,-400.0,0.00018776,2]
[377974753,1754640649857,-400.0,0.00018776,2]
[377974754,1754640649867,-400.0,0.00018776,2]
[377974755,1754640649877,-400.0,0.00018776,2]
[377974756,1754640649888,-400.0,0.00018776,2]
[377974757,1754640649898,-1027.8,0.00018776,2]
[377974758,1754640649908,-997.92,0.00018776,2]
[377974759,1754640649918,-1198.56,0.00018776,2]
[377974760,1754640649928,-782.35,0.00018776,2]
[377974761,1754640649938,-762.82,0.00018776,2]
[377974762,1754640649949,-400.0,0.00018776,2]
[377974763,1754640649959,-400.0,0.00018776,2]
[377974764,1754640649971,-510.05,0.00018776,2]
[377974765,1754640649981,-400.0,0.00018776,2]
[377974766,1754640649991,-873.17,0.00018776,2]
[377974767,1754640650001,-771.84,0.00018776,2]
[377974768,1754640650011,-432.31,0.00018776,2]
[377974769,1754640650021,-400.0,0.00018776,2]
[377974770,1754640650031,-400.0,0.00018776,2]
[377974771,1754640650040,-1162.03,0.00018776,2]
[377974772,1754640650052,-478.8,0.00018776,2]
[377974773,1754640650064,-400.0,0.00018776,2]
[377974774,1754640650075,-156.617904,0.00018776,2]
[377974775,1754640650085,-783.19,0.00018776,2]
[377974776,1754640650095,-1023.01,0.00018776,2]
[377974777,1754640650105,-151.0,0.00018776,2]
[377974778,1754640650115,-400.0,0.00018776,2]
[377974779,1754640650126,-151.0,0.00018776,2]
[377974780,1754640650136,-400.0,0.00018776,2]
[377974781,1754640650148,-400.0,0.00018776,2]
[377974782,1754640650158,-400.0,0.00018776,2]
[377974783,1754640650169,-859.48,0.00018776,2]
[377974784,1754640650178,-894.75,0.00018776,2]
[377974785,1754640650188,-151.0,0.00018776,2]
[377974786,1754640650199,-151.0,0.00018776,2]
[377974787,1754640650209,-400.0,0.00018776,2]
[377974788,1754640650219,-151.0,0.00018776,2]
[377974789,1754640650228,-400.0,0.00018776,2]
[377974790,1754640650238,-400.0,0.00018776,2]
[377974791,1754640650247,-400.0,0.00018776,2]
[377974792,1754640650257,-151.0,0.00018776,2]
[377974793,1754640650267,-400.0,0.00018776,2]
[377974794,1754640650276,-556.05,0.00018776,2]
[377974795,1754640650286,-1269.95,0.00018776,2]
[377974796,1754640650296,-400.0,0.00018776,2]
[377974797,1754640650306,-510.17,0.00018776,2]
[377974798,1754640650316,-400.0,0.00018776,2]
[377974799,1754640650325,-938.27,0.00018776,2]
[377974800,1754640650335,-400.0,0.00018776,2]
[377974801,1754640650345,-400.0,0.00018776,2]
[377974802,1754640650354,-400.0,0.00018776,2]
[377974803,1754640650363,-502.917184,0.00018776,2]
[377974804,1754640650373,-502.917184,0.00018776,2]
[377974805,1754640650383,-1353.47,0.00018776,2]
[377974806,1754640650393,-400.0,0.00018776,2]
[377974807,1754640650403,-151.0,0.00018776,2]
[377974808,1754640650412,-151.0,0.00018776,2]
[377974809,1754640650422,-400.0,0.00018776,2]
[377974810,1754640650431,-400.0,0.00018776,2]
[377974811,1754640650441,-502.917184,0.00018776,2]
[377974812,1754640650450,-502.917184,0.00018776,2]
[377974813,1754640650460,-400.0,0.00018776,2]
[377974814,1754640650469,-151.0,0.00018776,2]
[377974815,1754640650479,-151.0,0.00018776,2]
[377974816,1754640650489,-152.325846,0.00018776,2]
[377974817,1754640650498,-400.0,0.00018776,2]
[377974818,1754640650508,-1751.72,0.00018776,2]
[377974819,1754640650517,-400.0,0.00018776,2]
[377974820,1754640650527,-1230.04,0.00018776,2]
[377974821,1754640650536,-475.01,0.00018776,2]
[377974822,1754640650546,-506.8770371,0.00018776,2]
[377974823,1754640650555,-400.0,0.00018776,2]
[377974824,1754640650565,-151.37169,0.00018776,2]
[377974825,1754640650576,-400.0,0.00018776,2]
[377974826,1754640650586,-761.52,0.00018776,2]
[377974827,1754640650595,-154.028631,0.00018776,2]
[377974828,1754640650605,-959.33,0.00018776,2]
[377974829,1754640650614,-1579.87,0.00018776,2]
[377974830,1754640650624,-400.0,0.00018776,2]
[377974831,1754640650633,-400.0,0.00018776,2]
[377974832,1754640650643,-400.0,0.00018776,2]
[377974833,1754640650652,-151.0,0.00018776,2]
[377974834,1754640650663,-151.0,0.00018776,2]
[377974835,1754640650673,-1591.11,0.00018776,2]
[377974836,1754640650684,-151.0,0.00018776,2]
[377974837,1754640650694,-400.0,0.00018776,2]
[377974838,1754640650703,-400.0,0.00018776,2]
[377974839,1754640650794,-400.0,0.00018776,2]
[377974840,1754640650804,-400.0,0.00018776,2]
[377974841,1754640650816,-842.06,0.00018776,2]
[377974842,1754640650826,-400.0,0.00018776,2]
[377974843,1754640650835,-1558.46,0.00018776,2]
[377974844,1754640650844,-400.0,0.00018776,2]